{"text_format":"1","workbook":"xlsx","n_sheets":1,"sheets":["Информация о закупках"],"not_rendered":{"charts":0,"images":0,"macros":1,"external_links":2,"defined_names":50,"comments":0,"pivot_tables":0},"unopened":[],"bounds":{"document_bytes":16777216,"sheet_cells":100000,"rows_first":2000,"rows_last":500,"rows_between":2000,"halvings":0,"cell_chars":16384,"cell_head_chars":4096},"cells_cut":0,"cells_raw":0,"read":"whole","date_system":"1900"}

{"sheet":"Информация о закупках","index":0,"n_rows":68,"n_cols":16,"rows_kept":68,"cut":false,"hidden":false,"merged":[[61,3,64,3],[61,4,64,4],[62,6,63,6],[62,7,63,7],[62,8,63,8],[54,8,55,8],[56,6,57,6],[56,7,57,7],[56,8,57,8],[58,6,59,6],[58,7,59,7],[58,8,59,8],[49,3,60,3],[49,4,60,4],[50,6,51,6],[50,7,51,7],[50,8,51,8],[52,6,53,6],[52,7,53,7],[52,8,53,8],[54,6,55,6],[54,7,55,7],[44,6,45,6],[44,7,45,7],[44,8,45,8],[46,6,47,6],[46,7,47,7],[46,8,47,8],[40,6,41,6],[40,7,41,7],[40,8,41,8],[42,6,43,6],[42,7,43,7],[42,8,43,8],[36,6,37,6],[36,7,37,7],[36,8,37,8],[38,6,39,6],[38,7,39,7],[38,8,39,8],[32,6,33,6],[32,7,33,7],[32,8,33,8],[34,6,35,6],[34,7,35,7],[34,8,35,8],[28,6,29,6],[28,7,29,7],[28,8,29,8],[30,6,31,6],[30,7,31,7],[30,8,31,8],[22,7,23,7],[22,8,23,8],[24,6,25,6],[24,7,25,7],[24,8,25,8],[26,6,27,6],[26,7,27,7],[26,8,27,8],[14,8,15,8],[16,6,17,6],[16,7,17,7],[16,8,17,8],[19,3,48,3],[19,4,48,4],[20,6,21,6],[20,7,21,7],[20,8,21,8],[22,6,23,6],[4,3,4,8],[5,3,5,8],[9,4,9,13],[11,3,18,3],[11,4,18,4],[12,6,13,6],[12,7,13,7],[12,8,13,8],[14,6,15,6],[14,7,15,7]]}
[]
[]
[]
[]
[null,null,null,"Информация об объемах товаров и услуг, их стоимости и способах приобретения *"]
[null,null,null,{"$f":"IF(org=0,\"Не определено\",org)","v":"МУП \"Тепловодоканал\""}]
[]
[null,null,null,"№ п/п","Наименование поставщика",null,"№ п/п","Способ приобретения","Реквизиты договора",null,"№ п/п","Наименование товара/услуги","Объем приобретенных товаров, услуг","Единица измерения объема","Стоимость, тыс.руб.","Доля расходов, % (от суммы расходов по указанной статье)"]
[null,null,null,"1","2",null,"3","4","5",null,"6","7","8","9","10","11"]
[null,null,null,null,"Расходы на ремонт (текущий и капитальный) основных производственных средств итого. Из них товары и услуги, приобретенные у организаций, сумма оплаты услуг которых превышает 20% суммы расходов по статье",null,null,null,null,null,null,null,null,null,{"$f":"List02_costs_OPS","v":12655}]
[null,null,null,"0"]
[null,null,"О","1","ООО \"Никель\"",null,null,"Итого по поставщику",null,null,null,null,null,null,{"$f":"SUM(O13:O19)","v":354.08443},{"$f":"nerr(O12/List02_costs_OPS)*100","v":{"$error":"#NAME?"}}]
[null,null,null,null,null,null,"1","торги/аукционы","№ 30-П от 30.06.2015г.",null,"1","Восстановление асфальтобетонного покрытия",137.5,"кв. м.",{"$f":"130625/1000","v":130.625}]
[null,null,null,null,null,null,null,null,null,null,null,"Добавить товар/услугу"]
[null,null,null,null,null,"О","2","торги/аукционы","№ 41-П от 12.08.2015г.",null,"1","Восстановление асфальтобетонного покрытия",122.3,"кв. м.",{"$f":"199000/1000","v":199}]
[null,null,null,null,null,null,null,null,null,null,null,"Добавить товар/услугу"]
[null,null,null,null,null,"О","3","торги/аукционы","№ 49-П от 31.08.2015г.",null,"1","Кап.ремонт тепловой камеры, расположенной угол ул. Р.Люксембург и Стояновича",1,"шт.",{"$f":"24459.43/1000","v":24.459430000000001}]
[null,null,null,null,null,null,null,null,null,null,null,"Добавить товар/услугу"]
[null,null,null,null,null,null,null,"Добавить способ"]
[null,null,"О","2","Индивидуальный предприниматель Мардоян В.В.",null,null,"Итого по поставщику",null,null,null,null,null,null,{"$f":"SUM(O21:O49)","v":9483.5153100000007},{"$f":"nerr(O20/List02_costs_OPS)*100","v":{"$error":"#NAME?"}}]
[null,null,null,null,null,null,"1","торги/аукционы","№ 36-П от 16.07.2015г.",null,"1","Кап.ремонт теплотрассы, совмещенной с водопроводом по ул. Урицкого 78А",74,"п. м.",{"$f":"(805016.04+218877.11)/1000","v":1023.89315}]
[null,null,null,null,null,null,null,null,null,null,null,"Добавить товар/услугу"]
[null,null,null,null,null,"О","2","торги/аукционы","№ 22-П от 17.06.2015г.",null,"1","Кап.ремонт теплотрассы, совмещенной с водопроводом по ул. Н.Островского от ТК 7-3-1 до ТК 7-3-16 А",60,"п. м.",{"$f":"(998012.35+160934.13)/1000","v":1158.9464800000001}]
[null,null,null,null,null,null,null,null,null,null,null,"Добавить товар/услугу"]
[null,null,null,null,null,"О","3","торги/аукционы","№ 21-П от 17.06.2015г.",null,"1","Кап.ремонт теплотрассы, совмещенной с водопроводом по ул. Стояновича от ТК 2-11-4А до ТК 2-4-13",74,"п. м.",{"$f":"(934528.89+50488.82)/1000","v":985.01770999999997}]
[null,null,null,null,null,null,null,null,null,null,null,"Добавить товар/услугу"]
[null,null,null,null,null,"О","4","торги/аукционы","№ 37-П от 27.07.2015г.",null,"1","Кап.ремонт теплотрассы, совмещенной с водопроводом от ТК  1-5 до пер. Технический",60,"п. м.",{"$f":"339400.95/1000","v":339.40095000000002}]
[null,null,null,null,null,null,null,null,null,null,null,"Добавить товар/услугу"]
[null,null,null,null,null,"О","5","торги/аукционы","№ 38-П от 27.07.02015г.",null,"1","Кап.ремонт трубопроводов теплоснабжения от ВТК-1 до ВТК-2 напротив ж/д № 15 по ул. О.Кошевого",22,"п. м.",{"$f":"(101660.5+45889.98)/1000","v":147.55048000000002}]
[null,null,null,null,null,null,null,null,null,null,null,"Добавить товар/услугу"]
[null,null,null,null,null,"О","6","торги/аукционы","№ 31-П от 30.06.2015г.",null,"1","Кап.ремонт теплотрассы, совмещенной с водопроводом по ул. Стояновича от ТК 1-5 до ТК 1-5/",60,"п. м.",{"$f":"(831537.1+382446.84)/1000","v":1213.9839399999998}]
[null,null,null,null,null,null,null,null,null,null,null,"Добавить товар/услугу"]
[null,null,null,null,null,"О","7","торги/аукционы","№ 39-П от 27.07.2015г.",null,"1","Кап. ремонт трубопроводов теплоснабжения на участке от ТК 1-28 до ТК 1-23-2 в районе ж/д по ул. Урицкого, 34",22,"п. м.",{"$f":"(416446.48+1339.82)/1000","v":417.78629999999998}]
[null,null,null,null,null,null,null,null,null,null,null,"Добавить товар/услугу"]
[null,null,null,null,null,"О","8","торги/аукционы","№ 43-П от 14.08.2015г.",null,"1","Кап.ремонт теплотрассы от  ТК-10 до ТК-10-1, кот. МО",25,"п. м.",{"$f":"(242985.93+89689.47)/1000","v":332.67540000000002}]
[null,null,null,null,null,null,null,null,null,null,null,"Добавить товар/услугу"]
[null,null,null,null,null,"О","9","торги/аукционы","№ 42-П от 14.08.2015г.",null,"1","Кап.ремонт теплотрассы, совмещенной с водопроводом по ул. Стояновича от ТК 1-6 и от ТК 1-7 к ЦОК № 1",90,"п. м.",{"$f":"(599194.74+535525.98)/1000","v":1134.72072}]
[null,null,null,null,null,null,null,null,null,null,null,"Добавить товар/услугу"]
[null,null,null,null,null,"О","10","торги/аукционы","№ 52-П от 16.09.2015г.",null,"1","Кап.ремонт теплотрасс, совмещенных с водопроводом, расположенных по  по ул. Железнодорожная от ТК 2-3-12 до ТК 2-3-4А и от ТК 2-3-11 до ввода в ж/д № 11",151,"п. м.",{"$f":"(1302560.6+44733.54)/1000","v":1347.2941400000002}]
[null,null,null,null,null,null,null,null,null,null,null,"Добавить товар/услугу"]
[null,null,null,null,null,"О","11","торги/аукционы","№ 54-П от 22.09.2015г.",null,"1","Кап.ремонт теплотрассы, совиещенной с водопроводом  между ТК 1-5-2// и ТК 1-6 по ул. Стояновича",25,"п. м.",{"$f":"(297216.89+157979.84)/1000","v":455.19673}]
[null,null,null,null,null,null,null,null,null,null,null,"Добавить товар/услугу"]
[null,null,null,null,null,"О","12","торги/аукционы","№ 55-П от 22.09.2015г.",null,"1","Кап.ремонт теплотрассы, совмещенной с водопроводом от ТК 10-2-8А по ТК 10-8Б по пер. Кирпичный",50,"п. м.",{"$f":"(234803.44+57166.14)/1000","v":291.96958000000001}]
[null,null,null,null,null,null,null,null,null,null,null,"Добавить товар/услугу"]
[null,null,null,null,null,"О","13","торги/аукционы","№ 63-П от 19.10.2015г.",null,"1","Кап.ремонт теплотрассы, совмещенной с водопроводом  по ул. Нагорная от ТК 3-10-14 до ТК 3-10-5",40,"п. м.",{"$f":"(343833.55+30267.48)/1000","v":374.10102999999998}]
[null,null,null,null,null,null,null,null,null,null,null,"Добавить товар/услугу"]
[null,null,null,null,null,"О","14","торги/аукционы","№ 68-П от 23.11.2015г.",null,"1","Кап. ремонт тепловых камер",{"$f":"5+3","v":8},"шт.",{"$f":"260978.7/1000","v":260.9787}]
[null,null,null,null,null,null,null,null,null,null,null,"Добавить товар/услугу"]
[null,null,null,null,null,null,null,"Добавить способ"]
[null,null,"О","3","Индивидуальный предприниматель  Манукян С.С.",null,null,"Итого по поставщику",null,null,null,null,null,null,{"$f":"SUM(O51:O61)","v":2386.36915},{"$f":"nerr(O50/List02_costs_OPS)*100","v":{"$error":"#NAME?"}}]
[null,null,null,null,null,null,"1","торги/аукционы","№ 47-П от 31.08.2015г.",null,"1","Кап.ремонт теплотрассы, совмещенной с водопроводом  пер. Кирпичный от ТК 7-3-7 до ТК 7-3-17",44,"п. м.",{"$f":"(357765.18+52174.16)/1000","v":409.93933999999996}]
[null,null,null,null,null,null,null,null,null,null,null,"Добавить товар/услугу"]
[null,null,null,null,null,"О","2","торги/аукционы","№ 48-П от 31.08.2015г.",null,"1","Кап.ремонт теплотрассы, совмещенной с водопроводом от ТК 5-1-6 до ТК 5-1-6А и ввод в дом по ул. Ремесленная, 55",63,"п. м.",{"$f":"(471239.1+24916.97)/1000","v":496.15606999999994}]
[null,null,null,null,null,null,null,null,null,null,null,"Добавить товар/услугу"]
[null,null,null,null,null,"О","3","торги/аукционы","№ 60-П от 19.10.2015г.",null,"1","Кап.ремонт теплотрассы, совмещенной с водопроводом  по ул. Первомайская от ТК 4-23 до ТК ЗАО \"Ленсиб\"",60,"п. м.",{"$f":"(242208.81+24932.45)/1000","v":267.14125999999999}]
[null,null,null,null,null,null,null,null,null,null,null,"Добавить товар/услугу"]
[null,null,null,null,null,"О","4","торги/аукционы","№ 58-П от 19.10.2015г.",null,"1","Кап.ремонт теплотрассы, совмещенной с водопроводом  по ул. К.Либкнехта от ТК 6-1-1 до ТК 6-1-2",36,"п. м.",259.77600000000001]
[null,null,null,null,null,null,null,null,null,null,null,"Добавить товар/услугу"]
[null,null,null,null,null,"О","5","торги/аукционы","№ 62-П от 19.10.2015г.",null,"1","Кап.ремонт теплотрассы, совмещенной с водопроводом по ул. П.Поручикова от ТК 7-1-1 до ТК 7-4-2А",137,"п. м.",{"$f":"(945079.77+8276.71)/1000","v":953.35648000000003}]
[null,null,null,null,null,null,null,null,null,null,null,"Добавить товар/услугу"]
[null,null,null,null,null,null,null,"Добавить способ"]
[null,null,"О","4","ООО \"Асфальтировщик\"",null,null,"Итого по поставщику",null,null,null,null,null,null,{"$f":"SUM(O63:O65)","v":150},{"$f":"nerr(O62/List02_costs_OPS)*100","v":{"$error":"#NAME?"}}]
[null,null,null,null,null,null,"1","торги/аукционы","№ 65-П от 29.10.2015г.",null,"1","Восстановление асфальтобетонного покрытия после производства ремонтных работ на теплотрассах по ул. К.Либкнехта",163.5,"кв. м.",{"$f":"150000/1000","v":150}]
[null,null,null,null,null,null,null,null,null,null,null,"Добавить товар/услугу"]
[null,null,null,null,null,null,null,"Добавить способ"]
[null,null,null,null,"Добавить поставщика"]
[]
[null,null,null,"*","Раскрывается не позднее 30 дней со дня сдачи годового бухгалтерского баланса в налоговые органы."]